fUST/lending_fUST_20260328
["ID","MTS","AMOUNT","RATE_DAILY","PERIOD"]
[418953443,1774638641196,-500.0,0.00013972,2]
[418953444,1774638641207,-521.16,0.00013972,2]
[418953445,1774638641217,-214.83510498,0.00013995,14]
[418953446,1774638641227,-151.0,0.00014,2]
[418953447,1774638641237,-151.0,0.00014,2]
[418953448,1774638641246,-196.1862699,0.00014094,2]
[418953449,1774638641255,-151.0,0.000141,2]
[418953450,1774638641264,-151.0,0.000142,2]
[418953451,1774638641274,-151.0,0.000142,2]
[418953452,1774638641283,-868.63,0.00014246,2]
[418953453,1774638641292,-2772.39,0.00014246,2]
[418953454,1774638641302,-500.0,0.00014246,2]
[418953455,1774638641311,-500.0,0.00014246,2]
[418953456,1774638641321,-610.9254474,0.00014246,2]
[418953457,1774638641330,-500.0,0.00014246,2]
[418953458,1774638641339,-521.16,0.00014246,2]
[418953459,1774638641348,-303.54589661,0.00014289,14]
[418953460,1774638641357,-151.0,0.000144,2]
[418953461,1774638641366,-151.0,0.000144,2]
[418953462,1774638641374,-500.0,0.00014494,2]
[418953463,1774638641383,-500.0,0.00014494,2]
[418953464,1774638641392,-500.0,0.00014494,2]
[418953465,1774638641400,-500.0,0.00014494,2]
[418953466,1774638641409,-500.0,0.00014494,2]
[418953467,1774638641418,-151.0,0.000145,2]
[418953468,1774638641427,-151.0,0.000145,2]
[418953469,1774638641436,-868.63,0.0001452,2]
[418953470,1774638641446,-2772.39,0.0001452,2]
[418953471,1774638641455,-500.0,0.0001452,2]
[418953472,1774638641465,-500.0,0.0001452,2]
[418953473,1774638641475,-504.7283285,0.0001452,2]
[418953474,1774638641486,-521.16,0.0001452,2]
[418953475,1774638641495,-151.0,0.000146,2]
[418953476,1774638641504,-151.0,0.000146,2]
[418953477,1774638641513,-1679.99769676,0.00014742,2]
[418953478,1774638641521,-196.0319461,0.0001479,2]
[418953479,1774638641530,-324.8016536,0.0001479,2]
[418953480,1774638641539,-868.63,0.00014794,2]
[418953481,1774638641548,-2772.39,0.00014794,2]
[418953482,1774638641556,-500.0,0.00014794,2]
[418953483,1774638641566,-500.0,0.00014794,2]
[418953484,1774638641574,-521.16,0.00014794,2]
[418953485,1774638641583,-151.0,0.000149,2]
[418953486,1774638641593,-151.0,0.000149,2]
[418953487,1774638641603,-458.15259273,0.000149,2]
[418953488,1774638641612,-458.15259271,0.000149,2]
[418953489,1774638641621,-458.15259271,0.000149,2]
[418953490,1774638641630,-1024.0,0.00015,10]
[418953491,1774638641639,-555.0,0.00015,2]
[418953492,1774638641648,-2257.0,0.00015,2]
[418953493,1774638641658,-1872.0,0.00015,2]
[418953494,1774638641670,-303.54589661,0.00015003,14]
[418953495,1774638641680,-1000.0,0.00015042,2]
[418953496,1774638641689,-1000.0,0.00015042,2]
[418953497,1774638641699,-1000.0,0.00015042,2]
[418953498,1774638641710,-1000.0,0.00015042,2]
[418953499,1774638641720,-1000.0,0.00015042,2]
[418953500,1774638641729,-150.42395641,0.00015042,2]
[418953501,1774638641737,-868.63,0.00015068,2]
[418953502,1774638641747,-2772.39,0.00015068,2]
[418953503,1774638641755,-500.0,0.00015068,2]
[418953504,1774638641765,-500.0,0.00015068,2]
[418953505,1774638641773,-521.16,0.00015068,2]
[418953506,1774638641783,-423.636334,0.00015068,2]
[418953507,1774638641792,-10000.0,0.00015205,2]
[418953508,1774638641802,-214.83510498,0.00015326,30]
[418953509,1774638641811,-194.41794512,0.00015329,2]
[418953510,1774638641820,-868.63,0.00015342,2]
[418953511,1774638641830,-2772.39,0.00015342,2]
[418953512,1774638641840,-500.0,0.00015342,2]
[418953513,1774638641851,-500.0,0.00015342,2]
[418953514,1774638641860,-521.16,0.00015342,2]
[418953515,1774638641869,-151.0,0.000154,2]
[418953516,1774638641878,-1500.0,0.0001559,2]
[418953517,1774638641886,-1500.0,0.0001559,2]
[418953518,1774638641895,-1500.0,0.0001559,2]
[418953519,1774638641905,-1500.0,0.0001559,2]
[418953520,1774638641915,-1500.0,0.0001559,2]
[418953521,1774638641924,-868.63,0.00015616,2]
[418953522,1774638641934,-2772.39,0.00015616,2]
[418953523,1774638641944,-275.2,0.00015616,2]
[418953524,1774638641955,-500.0,0.00015616,2]
[418953525,1774638641965,-521.16,0.00015616,2]
[418953526,1774638641973,-5000.0,0.0001564,2]
[418953527,1774638641983,-150.34840963,0.00015672,2]
[418953528,1774638641992,-303.54589661,0.00015718,30]
[418953529,1774638642001,-868.63,0.0001589,2]
[418953530,1774638642010,-2772.39,0.0001589,2]
[418953531,1774638642022,-500.0,0.0001589,2]
[418953532,1774638642031,-521.16,0.0001589,2]
[418953533,1774638642040,-5399.45609034,0.00015994,2]
[418953534,1774638642050,-2000.0,0.00016,10]
[418953535,1774638642061,-439.0,0.00016088,2]
[418953536,1774638642071,-2000.0,0.00016138,2]
[418953537,1774638642086,-2000.0,0.00016138,2]
[418953538,1774638642095,-2000.0,0.00016138,2]
[418953539,1774638642104,-2000.0,0.00016138,2]
[418953540,1774638642113,-2000.0,0.00016138,2]
[418953541,1774638642123,-868.63,0.00016164,2]
[418953542,1774638642134,-2772.39,0.00016164,2]
[418953543,1774638642143,-203.1110613,0.00016164,2]
[418953544,1774638642152,-521.16,0.00016164,2]
[418953545,1774638642162,-2510.08824562,0.000164,2]
[418953546,1774638642171,-303.54589661,0.00016433,30]
[418953547,1774638642181,-200.0,0.00016438,2]
[418953548,1774638642190,-868.63,0.00016438,2]
[418953549,1774638642199,-2772.39,0.00016438,2]
[418953550,1774638642208,-521.16,0.00016438,2]
[418953551,1774638642217,-151.0,0.00016438,2]
[418953552,1774638642227,-151.0,0.00016438,2]
[418953553,1774638642236,-151.0,0.00016438,2]
[418953554,1774638642246,-151.0,0.00016438,2]
[418953555,1774638642255,-151.0,0.00016438,2]
[418953556,1774638642264,-151.0,0.00016438,2]
[418953557,1774638642273,-151.0,0.00016438,2]
[418953558,1774638642282,-258.282068,0.00016438,2]
[418953559,1774638642291,-151.0,0.00016438,2]
[418953560,1774638642300,-151.0,0.00016438,2]
[418953561,1774638642309,-151.0,0.00016438,2]
[418953562,1774638642318,-151.0,0.00016438,2]
[418953563,1774638642327,-151.0,0.00016438,2]
[418953564,1774638642336,-151.0,0.00016438,2]
[418953565,1774638642345,-151.0,0.00016438,2]
[418953566,1774638642354,-151.0,0.00016438,2]
[418953567,1774638642363,-214.99995,0.00016438,2]
[418953569,1774638642372,-214.99995,0.00016438,2]
[418953570,1774638642381,-214.99995,0.00016438,2]
[418953572,1774638642390,-214.99995,0.00016438,2]
[418953573,1774638642400,-214.99995,0.00016438,2]
[418953574,1774638642488,-214.99995,0.00016438,2]
[418953575,1774638642499,-214.99995,0.00016438,2]
[418953576,1774638642508,-214.99995,0.00016438,2]
[418953577,1774638642517,-214.99995,0.00016438,2]
[418953578,1774638642526,-214.99995,0.00016438,2]
[418953579,1774638642535,-214.99995,0.00016438,2]
[418953580,1774638642544,-214.99995,0.00016438,2]
[418953581,1774638642553,-214.99995,0.00016438,2]
[418953582,1774638642563,-214.99995,0.00016438,2]
[418953583,1774638642572,-214.99995,0.00016438,2]
[418953584,1774638642581,-214.99995,0.00016438,2]
[418953585,1774638642591,-214.99995,0.00016438,2]
[418953586,1774638642600,-214.99995,0.00016438,2]
[418953587,1774638642610,-214.99995,0.00016438,2]
[418953588,1774638642620,-214.99995,0.00016438,2]
[418953589,1774638642630,-165.65700387,0.00016438,2]
[418953590,1774638642640,-214.83510498,0.00016658,60]
[418953591,1774638642650,-1204.32624985,0.00016686,2]
[418953592,1774638642659,-2500.0,0.00016686,2]
[418953593,1774638642668,-2500.0,0.00016686,2]
[418953594,1774638642677,-445.97795265,0.00016686,2]
[418953595,1774638642686,-2500.0,0.00016686,2]
[418953596,1774638642695,-868.63,0.00016712,2]
[418953597,1774638642704,-2772.39,0.00016712,2]
[418953598,1774638642713,-521.16,0.00016712,2]
[418953599,1774638642722,-328.62998352,0.00016932,3]
[418953600,1774638642731,-868.63,0.00016986,2]
[418953601,1774638642741,-2772.39,0.00016986,2]
[418953602,1774638642751,-521.16,0.00016986,2]
[418953603,1774638642760,-150.68643133,0.00016986,2]
[418953604,1774638642770,-2000.0,0.00017,10]
[418953605,1774638642779,-35799.16538152,0.00017,2]
[418953608,1774638642820,-76654.2184975,0.00017,2]
[418953609,1774638642829,-180.67,0.00017146,2]
[418953610,1774638642839,-303.54589661,0.00017148,60]
[418953611,1774638642848,-3000.0,0.00017233,2]
[418953612,1774638642857,-1731.36376552,0.00017233,2]
[418953613,1774638642868,-1309.62567554,0.00017233,2]
[418953614,1774638642877,-868.6763001,0.0001726,2]
[418953615,1774638642887,-2772.41347721,0.0001726,2]
[418953616,1774638642896,-521.22000007,0.0001726,2]
[418953617,1774638642906,-472.16149254,0.00017781,2]
[418953618,1774638642917,-303.54589661,0.00017862,60]
[418953619,1774638642926,-168.0,0.00017919,2]
[418953620,1774638642935,-352.0,0.00017919,2]
[418953621,1774638642945,-211.0,0.00017919,2]
[418953622,1774638642955,-214.83510498,0.0001799,60]
[418953623,1774638642964,-5009.11452038,0.00018,2]
[418953624,1774638642975,-197.0,0.00018027,3]
[418953625,1774638642984,-160.0,0.00018284,3]
[418953626,1774638642995,-305.97548451,0.00018284,5]
[418953627,1774638643004,-1812.00785264,0.00018289,28]
[418953628,1774638643013,-289.0,0.0001836,120]
[418953629,1774638643023,-173.0,0.0001836,120]
[418953630,1774638643034,-174.0,0.0001836,120]
[418953631,1774638643043,-174.0,0.0001836,120]
[418953632,1774638643053,-275.60462691,0.00018382,120]
[418953633,1774638643062,-423.636334,0.00018493,2]
[418953634,1774638643072,-303.54589661,0.00018577,60]
[418953635,1774638643082,-5000.0,0.00018768,2]
[418953636,1774638643091,-168.0,0.00018919,2]
[418953637,1774638643101,-352.0,0.00018919,2]
[418953638,1774638643111,-211.0,0.00018919,2]
[418953640,1774638643120,-5399.45609034,0.00018963,2]
[418953642,1774638643130,-22090.30117263,0.00019,2]
[418953643,1774638643140,-21862.84022664,0.00019,2]
[418953644,1774638643149,-2603.49,0.00019,2]
[418953645,1774638643159,-1002.174386,0.00019,2]
[418953646,1774638643169,-24636.20949893,0.00019,2]
[418953647,1774638643178,-53454.81462362,0.00019,2]
[418953648,1774638643188,-199.0,0.00019123,3]
[418953649,1774638643198,-500.0,0.00019178,2]
[418953650,1774638643208,-538.8902947,0.00019178,2]
[418953651,1774638643217,-2563.41,0.00019178,2]
[418953652,1774638643227,-365380.32649501,0.00019239,2]
[418953653,1774638643238,-289.0,0.00019278,120]
[418953654,1774638643249,-173.0,0.00019278,120]
[418953655,1774638643259,-174.0,0.00019278,120]
[418953656,1774638643268,-174.0,0.00019278,120]
[418953657,1774638643279,-303.54589661,0.00019292,120]
[418953658,1774638643288,-214.83510498,0.00019321,120]
[418953659,1774638643298,-151.7729483,0.00019374,120]
[418953660,1774638643308,-219.0,0.0001938,120]
[418953661,1774638643318,-164.0,0.0001938,120]
[418953662,1774638643328,-165.0,0.0001938,120]
[418953663,1774638643338,-600.0,0.0001949,2]
[418953664,1774638643347,-1000.0,0.000195,2]
[418953665,1774638643357,-278.0,0.00019599,2]
[418953666,1774638643367,-1509.5100213,0.0001975,2]
[418953667,1774638643376,-1500.0,0.0001975,2]
[418953668,1774638643386,-347.0,0.00019766,2]
[418953669,1774638643395,-300.79117693,0.00019821,2]
[418953670,1774638643406,-250.0,0.00019821,2]
[418953671,1774638643415,-168.0,0.00019919,2]
[418953672,1774638643425,-352.0,0.00019919,2]
[418953673,1774638643436,-211.0,0.00019919,2]
[418953674,1774638643450,-434.0,0.00019928,2]
[418953675,1774638643464,-500.0,0.0002,2]
[418953676,1774638643478,-271753.94049257,0.0002,2]
[418953677,1774638643494,-50551.42,0.0002,2]
[418953678,1774638643507,-3970.35722638,0.0002,2]
[418953681,1774638646177,-5000.0,0.00014892,2]
[418953682,1774638646190,-4871.5,0.0002,2]
[418953760,1774639838068,-5000.0,0.00010962,2]
[418953761,1774639838077,-5000.0,0.00011073,2]
[418953762,1774639838088,-576.0,0.00011073,2]
[418953763,1774639838097,-152.81,0.00012,2]
[418953764,1774639838106,-500.0,0.00012398,2]
[418953765,1774639838116,-180.0540162,0.00013699,2]
[418953766,1774639838125,-1828.818095,0.00013699,2]
[418953767,1774639838134,-1000.0,0.00013699,2]
[418953768,1774639838144,-241.5,0.00014,2]
[418953769,1774639838155,-254.1818,0.00015068,2]
[418953770,1774639838164,-263.04912331,0.00015799,2]
[418953771,1774639838174,-410.67,0.000158,2]
[418953772,1774639838184,-50000.0,0.000158,2]
[418953773,1774639838194,-193.0,0.00016247,3]
[418953774,1774639838203,-200.0,0.00016438,2]
[418953775,1774639838213,-160.0,0.00017342,3]
[418953776,1774639838223,-882.81,0.00018438,2]
[418953777,1774639838234,-161.0,0.00018438,3]
[418953778,1774639838243,-254.1818,0.00018493,2]
[418953779,1774639838252,-1223.32574084,0.00018775,2]
[418953780,1774639838262,-500.0,0.00018775,2]
[418953781,1774639838271,-1223.32574084,0.00018775,2]
[418953782,1774639838280,-500.0,0.00018775,2]
[418953783,1774639838290,-1223.32574084,0.00018775,2]
[418953784,1774639838299,-1223.32574084,0.00018775,2]
[418953785,1774639838308,-1223.32574084,0.00018775,2]
[418953786,1774639838317,-1223.32574084,0.00018775,2]
[418953787,1774639838326,-1223.32574084,0.00018775,2]
[418953788,1774639838337,-263.72837634,0.00018775,2]
[418953789,1774639838346,-1223.32574084,0.00018775,2]
[418953790,1774639838356,-1223.32574084,0.00018775,2]
[418953791,1774639838365,-1223.32574084,0.00018775,2]
[418953792,1774639838374,-1223.32574084,0.00018775,2]
[418953793,1774639838383,-1223.32574084,0.00018775,2]
[418953794,1774639838394,-1223.32574084,0.00018775,2]
[418953795,1774639838405,-1223.32574084,0.00018775,2]
[418953796,1774639838415,-1223.32574084,0.00018775,2]
[418953797,1774639838425,-1223.32574084,0.00018775,2]
[418953798,1774639838437,-3642.0,0.00018781,2]
[418953799,1774639838447,-3642.0,0.00018839,2]
[418953800,1774639838457,-500.0,0.00018871,2]
[418953801,1774639838466,-500.0,0.00018871,2]
[418953802,1774639838475,-171.51752712,0.00018871,2]
[418953803,1774639838485,-500.0,0.00018871,2]
[418953804,1774639838494,-415.97189142,0.00018871,2]
[418953805,1774639838504,-3642.0,0.00018891,2]
[418953806,1774639838513,-218.18623125,0.00018973,2]
[418953807,1774639838522,-210.02029432,0.00018973,2]
[418953808,1774639838531,-222.27752581,0.00018973,2]
[418953809,1774639838540,-260.86691066,0.00018973,2]
[418953810,1774639838550,-240.21051984,0.00018973,2]
[418953811,1774639838559,-224.93970404,0.00018973,2]
[418953812,1774639838569,-263.987473,0.00018973,2]
[418953813,1774639838578,-3642.0,0.00019145,2]
[418953814,1774639838588,-3642.0,0.00019207,2]
[418953815,1774639838597,-187.97896263,0.00019247,2]
[418953816,1774639838606,-185.50211605,0.00019247,2]
[418953817,1774639838615,-3642.0,0.00019431,2]
[418953818,1774639838624,-3642.0,0.00019446,2]
[418953819,1774639838634,-3642.0,0.00019496,2]
[418953820,1774639838643,-3642.0,0.00019521,2]
[418953821,1774639838662,-3642.0,0.00019524,2]
[418953822,1774639838673,-162.0,0.00019534,3]
[418953823,1774639838682,-3642.0,0.00019623,2]
[418953824,1774639838692,-500.0,0.00019725,2]
[418953825,1774639838701,-500.0,0.00019725,2]
[418953826,1774639838711,-500.0,0.00019725,2]
[418953827,1774639838720,-505.14746305,0.00019725,2]
[418953828,1774639838731,-356.0,0.0001979,2]
[418953829,1774639838740,-5000.0,0.00019951,2]
[418953830,1774639838750,-3642.0,0.00019953,2]
[418953831,1774639838759,-569668.66987388,0.0002,2]
[418953832,1774639838769,-207.06332026,0.0002,2]
[418953833,1774639838779,-403124.91494713,0.0002,2]
[418953834,1774639838788,-374.45271869,0.0002,2]
[418953835,1774639838798,-204.28676741,0.0002,2]
[418953836,1774639838807,-203714.00483933,0.0002,2]
[418953837,1774639838816,-656000.4820525,0.0002,2]
[418953922,1774639846160,-2329.18508868,0.00018775,2]
[418953923,1774639846171,-292.22721311,0.00018775,2]
[418953924,1774639846181,-2621.41230179,0.00018775,2]
[418953925,1774639846190,-222.27521657,0.00018775,2]
[418953926,1774639846218,-413.28111566,0.00018775,2]
[418953956,1774641032008,-200.85822544,0.0001198,2]
[418953958,1774641032017,-5000.0,0.0001208,2]
[418953960,1774641032026,-590.0,0.0001208,2]
[418953961,1774641032035,-5000.0,0.00012202,2]
[418953963,1774641032044,-65567.94143114,0.00012225,2]
[418953965,1774641032053,-180.05041412,0.00013699,2]
[418953967,1774641032061,-1000.0,0.00013699,2]
[418953969,1774641032070,-500.0,0.00014631,2]
[418953971,1774641032079,-10000.0,0.00015297,2]
[418953973,1774641032087,-1000.0,0.00015407,2]
[418953974,1774641032096,-324.33831882,0.00015425,2]
[418953975,1774641032107,-4241.16229883,0.00015425,2]
[418953977,1774641032193,-5010.87420942,0.00015425,2]
[418953978,1774641032204,-490.57899851,0.00015425,2]
[418954029,1774641043724,-250.820863,0.00012102,2]
[418954058,1774641049306,-4749.179137,0.00012102,2]
[418954059,1774641049316,-968.80981294,0.00012224,2]
[418954060,1774641049326,-500.0,0.00012224,2]
[418954061,1774641049335,-968.80981294,0.00012224,2]
[418954062,1774641049344,-384.60986343,0.00012224,2]
[418954063,1774641049352,-968.80981294,0.00012224,2]
[418954065,1774641049361,-968.80981294,0.00012224,2]
[418954067,1774641049370,-71.32174724,0.00012224,2]
[418954069,1774641049382,-897.4880657,0.00012224,2]
[418954071,1774641049392,-968.80981294,0.00012224,2]
[418954073,1774641049401,-968.80981294,0.00012224,2]
[418954075,1774641049409,-968.80981294,0.00012224,2]
[418954077,1774641049418,-968.80981294,0.00012224,2]
[418954079,1774641049427,-968.80981294,0.00012224,2]
[418954081,1774641049436,-968.80981294,0.00012224,2]
[418954083,1774641049445,-968.80981294,0.00012224,2]
[418954085,1774641049454,-968.80981294,0.00012224,2]
[418954087,1774641049463,-968.80981294,0.00012224,2]
[418954089,1774641049471,-968.80981294,0.00012224,2]
[418954091,1774641049481,-968.80981294,0.00012224,2]
[418954093,1774641049490,-968.80981294,0.00012224,2]
[418954095,1774641049499,-968.80981294,0.00012224,2]
[418954097,1774641049508,-968.80981294,0.00012224,2]
[418954099,1774641049517,-968.80981294,0.00012224,2]
[418954101,1774641049526,-1794.0,0.00015,2]
[418954103,1774641049535,-2163.0,0.00015,2]
[418954105,1774641049545,-417.0,0.00015,2]
[418954107,1774641049554,-5313.41977442,0.00015425,2]
[418954108,1774641049563,-50000.0,0.00015425,2]
[418954109,1774641049572,-5000.0,0.00016244,2]
[418954110,1774641049582,-244.0,0.00016247,3]
[418954111,1774641049591,-213.0,0.0001789,3]
[418954112,1774641049600,-706.248,0.00018674,2]
[418954113,1774641049609,-287.0,0.00018989,2]
[418954114,1774641049618,-334.0,0.00019162,2]
[418954116,1774641049627,-429.0,0.00019329,2]
[418954117,1774641049636,-5000.0,0.00019492,2]
[418954118,1774641049645,-216.0,0.00019534,3]
[418954119,1774641049654,-200.85822544,0.000199,2]
[418954120,1774641049663,-18420.93001752,0.0002,2]
[418954121,1774641049681,-1468.4,0.0002,2]
[418954122,1774641049814,-604.0,0.0002,2]
[418954124,1774641204208,8296.54,2.013e-05,2]
[418954166,1774642234150,-4091.09591491,0.00010727,2]
[418954168,1774642234162,-517.75085583,0.00010727,2]
[418954170,1774642234173,-391.15322926,0.00010727,2]
[418954172,1774642234183,-570.0,0.00010727,2]
[418954174,1774642234192,-1623.00016684,0.00010835,2]
[418954176,1774642234204,-3376.99983316,0.00010835,2]
[418954178,1774642234213,-180.0540162,0.00013699,2]
[418954180,1774642234222,-1000.0,0.00013699,2]
[418954182,1774642234231,-500.0,0.00014793,2]
[418954184,1774642234240,-2073.0,0.00015,2]
[418954186,1774642234250,-1719.0,0.00015,2]
[418954188,1774642234259,-312.0,0.00015,2]
[418954190,1774642234268,-356.77981059,0.00015,2]
[418954192,1774642234277,-226.0,0.00016219,3]
[418954193,1774642234286,-200.0,0.00016438,2]
[418954194,1774642234295,-4750.83117108,0.00016438,2]
[418954195,1774642234306,-853.624,0.00016438,2]
[418954196,1774642234327,-4482.24914417,0.00016438,2]
[418954204,1774642238414,-1987.0,0.00016438,2]
[418954205,1774642238424,-1576.0,0.00016438,2]
[418954206,1774642238435,-935.0,0.00016438,2]
[418954207,1774642238444,-39913.29568475,0.00016438,2]
[418954208,1774642238454,-800.56619324,0.00017057,2]
[418954209,1774642238463,-619.2269044,0.00017057,2]
[418954210,1774642238472,-800.56619324,0.00017057,2]
[418954211,1774642238481,-800.56619324,0.00017057,2]
[418954212,1774642238490,-800.56619324,0.00017057,2]
[418954213,1774642238501,-800.56619324,0.00017057,2]
[418954214,1774642238510,-800.56619324,0.00017057,2]
[418954215,1774642238520,-800.56619324,0.00017057,2]
[418954216,1774642238529,-800.56619324,0.00017057,2]
[418954217,1774642238539,-800.56619324,0.00017057,2]
[418954218,1774642238548,-800.56619324,0.00017057,2]
[418954219,1774642238557,-800.56619324,0.00017057,2]
[418954220,1774642238566,-800.56619324,0.00017057,2]
[418954221,1774642238575,-800.56619324,0.00017057,2]
[418954222,1774642238585,-800.56619324,0.00017057,2]
[418954223,1774642238595,-800.56619324,0.00017057,2]
[418954224,1774642238604,-800.56619324,0.00017057,2]
[418954225,1774642238613,-800.56619324,0.00017057,2]
[418954226,1774642238623,-1349.86402258,0.00017058,2]
[418954227,1774642238632,-193.0,0.00017863,3]
[418954228,1774642238642,-564.998,0.00018382,2]
[418954229,1774642238753,-190.63635,0.00018682,2]
[418954230,1774642238763,-914.409047,0.00018682,2]
[418954231,1774642238773,-1349.86402258,0.0001879,2]
[418954232,1774642238783,-1000.0,0.00019278,2]
[418954233,1774642238792,-1000.0,0.00019278,2]
[418954234,1774642238802,-844.597,0.00019278,2]
[418954235,1774642238810,-1372.40284886,0.000195,2]
[418954236,1774642238820,-195.0,0.00019507,3]
[418954237,1774642238829,-2000.0,0.000196,2]
[418954238,1774642238838,-321.0,0.00019641,2]
[418954239,1774642238847,-2000.0,0.000197,2]
[418954240,1774642238857,-150.12223607,0.000198,2]
[418954241,1774642238866,-2000.0,0.000198,2]
[418954242,1774642238875,-600.0,0.00019895,2]
[418954243,1774642238884,-154.43528573,0.000199,45]
[418954244,1774642238893,-150.87834927,0.000199,30]
[418954245,1774642238902,-155.65971691,0.000199,30]
[418954246,1774642238912,-153.45310437,0.000199,30]
[418954247,1774642238921,-153.89627151,0.000199,30]
[418954248,1774642238930,-2000.0,0.000199,2]
[418954249,1774642238939,-5000.0,0.00019999,2]
[418954250,1774642238948,-175109.05944812,0.0002,2]
[418954251,1774642238960,-22892.59066988,0.0002,2]
[418954272,1774642249970,-5000.0,0.00016886,2]
[418954273,1774642249980,-10003.791372,0.000199,2]
[418954274,1774642249990,-18834.76313516,0.0002,2]
[418954275,1774642249999,-156.0601924,0.0002,2]
[418954276,1774642250008,-151.0,0.0002,2]
[418954277,1774642250017,-7753.2802724,0.0002,5]
[418954278,1774642250027,-116520.40438572,0.0002,2]
[418954317,1774643434652,-283.624,0.00012142,2]
[418954320,1774643434713,-284.79628156,0.00012142,2]
[418954335,1774643439149,-4431.57971844,0.00012142,2]
[418954336,1774643439159,-5000.0,0.00012265,2]
[418954337,1774643439172,-593.0,0.00012265,2]
[418954338,1774643439183,-180.05041412,0.00013699,2]
[418954339,1774643439195,-1000.0,0.00013699,2]
[418954340,1774643439206,-1582.0,0.00015,2]
[418954341,1774643439218,-1904.0,0.00015,2]
[418954342,1774643439228,-10000.0,0.00015205,2]
[418954343,1774643439239,-13055.702973,0.00015631,2]
[418954344,1774643439251,-1000.0,0.00015878,2]
[418954345,1774643439261,-327.0,0.00017315,3]
[418954346,1774643439271,-442.22768067,0.00018275,5]
[418954347,1774643439281,-50000.0,0.00018774,2]
[418954348,1774643439291,-433.45883309,0.00018774,2]
[418954349,1774643439302,-670.31074482,0.00018774,2]
[418954350,1774643439313,-670.31074482,0.00018774,2]
[418954351,1774643439323,-670.31074482,0.00018774,2]
[418954352,1774643439333,-670.31074482,0.00018774,2]
[418954353,1774643439343,-670.31074482,0.00018774,2]
[418954354,1774643439353,-670.31074482,0.00018774,2]
[418954355,1774643439363,-670.31074482,0.00018774,2]
[418954356,1774643439374,-670.31074482,0.00018774,2]
[418954357,1774643439384,-670.31074482,0.00018774,2]
[418954358,1774643439395,-670.31074482,0.00018774,2]
[418954359,1774643439405,-670.31074482,0.00018774,2]
[418954360,1774643439415,-670.31074482,0.00018774,2]
[418954361,1774643439425,-670.31074482,0.00018774,2]
[418954362,1774643439435,-670.31074482,0.00018774,2]
[418954363,1774643439445,-670.31074482,0.00018774,2]
[418954364,1774643439455,-670.31074482,0.00018774,2]
[418954365,1774643439465,-670.31074482,0.00018774,2]
[418954366,1774643439475,-670.31074482,0.00018774,2]
[418954367,1774643439485,-692.65443631,0.00018774,2]
[418954368,1774643439495,-692.65443631,0.00018774,2]
[418954369,1774643439505,-692.65443631,0.00018774,2]
[418954370,1774643439515,-692.65443631,0.00018774,2]
[418954371,1774643439525,-692.65443631,0.00018774,2]
[418954372,1774643439535,-692.65443631,0.00018774,2]
[418954373,1774643439545,-692.65443631,0.00018774,2]
[418954374,1774643439555,-692.65443631,0.00018774,2]
[418954375,1774643439565,-692.65443631,0.00018774,2]
[418954376,1774643439575,-1000.0,0.00018775,2]
[418954377,1774643439744,-1000.0,0.00018775,2]
[418954378,1774643439772,-1000.0,0.00018775,2]
[418954379,1774643439783,-200.0,0.00019507,3]
[418954380,1774643439793,-3642.0,0.00019516,2]
[418954381,1774643439802,-3642.0,0.00019532,2]
[418954382,1774643439813,-451.999,0.00019576,2]
[418954383,1774643439822,-3642.0,0.00019576,2]
[418954384,1774643439832,-3642.0,0.0001981,2]
[418954385,1774643439842,-3642.0,0.00019837,2]
[418954386,1774643439851,-3642.0,0.0001988,2]